bitfinex/quotes_SOLUSD_20250204
["timestamp","ask_amount","ask_price","bid_price","bid_amount"]
[1738676276479,38.05540687,212.1,212.04,4.7159]
[1738676276682,38.05540687,212.08,212.02,4.7163]
[1738676277301,38.05540687,212.08,212.03,20.0]
[1738676277682,38.05540687,212.06,212.01,0.063]
[1738676277887,38.05540687,212.06,212.02,0.12549]
[1738676278413,38.05540687,212.06,212.02,4.84189]
[1738676278785,38.05540687,212.08,212.04,0.12549]
[1738676280314,38.05540687,212.08,212.04,4.716]
[1738676281503,0.03,212.13,212.07,0.50196]
[1738676281699,0.03,212.13,212.12,0.12549]
[1738676282401,0.03,212.13,212.12,0.50196]
[1738676282708,38.05540687,212.22,212.15,0.50196]
[1738676282907,38.05540687,212.22,212.15,39.26418335]
[1738676283615,38.05540687,212.16,212.11,4.7145]
[1738676283814,38.05540687,212.14,212.08,4.7152]
[1738676284116,38.05540687,212.1,212.03,38.05540687]
[1738676284409,38.05540687,212.08,212.03,0.12549]
[1738676284614,38.05540687,212.08,212.02,4.7165]
[1738676285021,38.05540687,212.08,212.03,0.12549]
[1738676285795,38.05540687,212.04,212.01,0.063]
[1738676286600,38.05540687,212.02,212.01,0.063]
[1738676287031,134.8,212.06,212.01,0.063]
[1738676287032,38.05540687,212.04,212.01,0.063]
[1738676287231,38.05540687,212.02,212.01,0.063]
[1738676287707,42.77190687,212.02,212.01,0.063]
[1738676288119,38.05540687,212.02,212.01,0.063]
[1738676290926,52.17479603,212.02,212.01,0.063]
[1738676291432,186.97479603,212.02,212.01,0.063]
[1738676291723,186.2672554,212.02,212.01,0.063]
[1738676292332,51.7182354,212.02,212.01,0.063]
[1738676292507,20.0,211.98,211.92,0.063]
[1738676292705,38.05540687,211.93,211.92,0.063]
[1738676293516,38.05540687,211.95,211.92,0.063]
[1738676295330,38.05540687,211.93,211.92,0.063]
[1738676297219,38.05540687,211.98,211.92,0.18849]
[1738676297421,38.05540687,212.02,211.98,0.12549]
[1738676297650,38.05540687,212.06,212.01,0.25098]
[1738676297935,38.05540687,212.08,212.02,0.12549]
[1738676298324,38.05540687,212.06,212.02,4.84179]
[1738676298519,38.05540687,212.04,211.98,4.7174]
[1738676298727,38.05540687,212.0,211.95,4.718]
[1738676299139,38.05540687,212.0,211.96,0.37647]
[1738676299436,38.05540687,212.0,211.96,0.12549]
[1738676299628,38.05540687,211.98,211.93,20.0]
[1738676299833,38.05540687,211.98,211.93,24.7184]
[1738676300030,38.05540687,211.98,211.94,0.12549]
[1738676300833,38.05540687,211.96,211.92,0.063]
[1738676301033,38.05540687,211.94,211.92,0.063]
[1738676304721,84.15098,212.0,211.92,0.063]
[1738676304722,38.05540687,211.96,211.92,0.063]
[1738676305032,172.85540687,212.0,211.92,38.24389687]
[1738676305233,38.05540687,212.0,211.95,4.718]
[1738676305537,38.05540687,211.98,211.93,4.7183]
[1738676305726,0.5,212.02,211.93,4.7183]
[1738676305727,38.55540687,212.02,211.94,38.05540687]
[1738676305937,0.5,212.02,211.98,0.12549]
[1738676306128,0.5,212.02,212.01,20.0]
[1738676306355,38.05540687,212.12,212.02,0.50196]
[1738676306561,38.05540687,212.12,212.04,38.43187687]
[1738676306733,0.03,212.13,212.09,0.12549]
[1738676306941,0.03,212.13,212.11,0.37647]
[1738676307258,0.03,212.13,212.06,38.05540687]
[1738676307425,38.05540687,212.12,212.05,4.7158]
[1738676307940,38.05540687,212.12,212.06,0.37647]
[1738676308141,38.05540687,212.12,212.06,0.12549]
[1738676308325,0.03,212.13,212.08,38.05540687]
[1738676308530,0.03,212.13,212.11,0.25098]
[1738676308855,0.03,212.13,212.09,0.12549]
[1738676309148,38.05540687,212.12,212.08,4.715]
[1738676309357,38.05540687,212.1,212.0,38.05540687]
[1738676309649,38.05540687,212.08,212.03,20.0]
[1738676309849,38.05540687,212.08,212.04,0.12549]
[1738676310423,38.05540687,212.08,212.01,4.7167]
[1738676310624,38.05540687,212.1,212.04,0.25098]
[1738676310828,38.05540687,212.12,212.06,0.12549]
[1738676311229,38.05540687,212.12,212.08,0.12549]
[1738676311553,38.05540687,212.1,211.99,4.7171]
[1738676311724,38.05540687,212.07,211.99,4.7171]
[1738676311929,38.05540687,212.07,212.0,0.12549]
[1738676312548,38.05540687,212.09,212.02,0.12549]
[1738676312849,38.05540687,212.09,212.02,0.37647]
[1738676313046,38.05540687,212.07,212.01,4.7167]
[1738676314260,38.05540687,212.03,211.97,24.7175]
[1738676314942,38.05540687,212.03,211.98,0.37647]
[1738676315443,38.05540687,212.05,211.99,0.37647]
[1738676315649,38.05540687,212.09,212.02,38.43187687]
[1738676315847,38.05540687,212.09,212.02,0.12549]
[1738676316147,38.05540687,212.03,211.95,4.7179]
[1738676316652,38.05540687,212.01,211.95,4.7179]
[1738676316850,38.05540687,211.99,211.94,4.7182]
[1738676317053,38.05540687,211.99,211.92,4.7816]
[1738676317259,38.05540687,211.95,211.92,0.063]
[1738676317456,38.05540687,211.95,211.92,4.7817]
[1738676317656,38.05540687,211.95,211.92,0.063]
[1738676317858,13.41184853,211.99,211.92,0.063]
[1738676317859,38.05540687,211.93,211.92,0.063]
[1738676319031,134.8,212.0,211.92,0.063]
[1738676319032,38.05540687,211.97,211.92,0.063]
[1738676319238,134.8,212.03,211.92,0.063]
[1738676319239,38.05540687,212.01,211.94,0.12549]
[1738676319556,38.05540687,211.97,211.92,0.063]
[1738676320360,38.05540687,212.01,211.93,0.12549]
[1738676320554,38.05540687,212.01,211.94,38.30638687]
[1738676320742,38.05540687,212.01,211.95,4.718]
[1738676321165,38.05540687,212.01,211.96,0.12549]
[1738676322770,38.05540687,212.01,211.97,4.7176]
[1738676322978,38.05540687,212.05,211.98,0.37647]
[1738676323152,38.05540687,212.05,211.97,16.5117]
[1738676323557,38.05540687,212.05,211.98,0.12549]
[1738676323754,38.05540687,212.05,211.98,0.50196]
[1738676325058,38.05540687,212.05,212.0,0.12549]
[1738676325951,38.05540687,212.05,211.99,4.7172]
[1738676326569,105.8942935,212.11,211.99,4.7172]
[1738676326796,38.05540687,212.01,211.94,4.7183]
[1738676327072,38.05540687,211.99,211.94,4.7183]
[1738676328166,38.05540687,211.97,211.93,4.7185]
[1738676329270,38.05540687,211.99,211.93,4.7185]
[1738676329481,38.05540687,212.05,211.98,13.53733853]
[1738676329880,38.05540687,212.03,211.95,38.05540687]
[1738676330080,38.05540687,212.01,211.93,54.57020687]
[1738676330369,38.05540687,212.01,211.94,13.78831853]
[1738676330750,38.05540687,212.01,211.94,13.85131853]
[1738676331158,38.05540687,212.01,211.96,13.78831853]
[1738676331358,38.05540687,212.07,212.01,0.12549]
[1738676331586,38.05540687,212.07,212.01,13.53733853]
[1738676332258,38.05540687,212.03,211.96,0.70739152]
[1738676332456,38.05540687,212.01,211.95,16.5132]
[1738676332659,38.05540687,212.03,211.96,13.78831853]
[1738676333102,38.05540687,212.03,211.97,4.7176]
[1738676333281,38.05540687,212.03,211.98,0.12549]
[1738676334088,38.05540687,212.01,211.95,4.7179]
[1738676334267,38.05540687,212.01,211.96,13.53733853]
[1738676334674,23.47730849,212.0,211.95,4.7179]
[1738676335077,23.47730849,212.02,211.96,13.53733853]
[1738676335285,23.47730849,212.04,212.0,0.12549]
[1738676335768,23.47730849,212.04,211.97,4.7176]
[1738676336169,23.47730849,212.08,212.03,0.37647]
[1738676336365,0.03,212.1,212.07,0.12549]
[1738676336784,0.03,212.1,212.09,0.12549]
[1738676336970,0.03,212.1,212.09,13.91380853]
[1738676337170,0.03,212.1,212.09,18.95928593]
[1738676337384,0.03,212.1,212.09,18.25223853]
[1738676337877,0.03,212.1,212.04,23.47730849]
[1738676338188,23.47730849,212.08,212.03,4.7163]
[1738676338406,23.47730849,212.08,212.02,4.7165]
[1738676338566,23.47730849,212.08,212.03,13.78831853]
[1738676338991,23.47730849,212.08,212.01,4.7167]
[1738676339493,23.47730849,212.08,212.02,13.78831853]
[1738676340591,38.13701912,212.04,211.99,20.0]
[1738676340793,38.13701912,212.06,211.99,20.0]
[1738676341089,38.16701912,212.1,212.0,38.13701912]
[1738676341276,38.13701912,212.06,211.98,38.13701912]
[1738676341477,20.0,212.08,211.97,4.7176]
[1738676341680,38.13701912,212.02,211.95,4.7179]
[1738676341876,38.13701912,212.0,211.94,0.063]
[1738676342075,112.9797935,212.07,211.94,0.063]
[1738676342076,38.13701912,211.96,211.94,0.063]
[1738676343197,42.85491912,211.96,211.94,0.063]
[1738676343898,144.40778262,211.95,211.94,0.063]
[1738676344068,45.94827912,211.95,211.94,0.063]
[1738676344901,1.37647,211.9,211.88,0.063]
[1738676345087,20.0,211.86,211.77,0.063]
[1738676345279,38.13701912,211.8,211.77,0.063]
[1738676346409,77.52501824,211.8,211.77,0.063]
[1738676346597,38.13701912,211.8,211.77,0.063]
[1738676346907,43.98390912,211.8,211.77,0.063]
[1738676347106,21.12549,211.78,211.71,14.60457677]
[1738676347283,38.13701912,211.72,211.71,14.60457677]
[1738676348489,38.13701912,211.72,211.66,0.12549]
[1738676348680,38.13701912,211.7,211.66,0.12549]
[1738676349096,38.13701912,211.74,211.69,0.12549]
[1738676349399,38.13701912,211.74,211.67,20.0]
[1738676349585,38.13701912,211.74,211.68,13.91380853]
[1738676350701,38.13701912,211.74,211.71,0.12549]
[1738676350899,38.13701912,211.72,211.65,4.7247]
[1738676351194,38.13701912,211.7,211.65,24.7247]
[1738676351396,38.13701912,211.72,211.66,13.91380853]
[1738676351824,38.13701912,211.74,211.68,13.91380853]
[1738676351975,38.13701912,211.78,211.72,13.91380853]
[1738676352178,136.3291,211.82,211.72,13.66282853]
[1738676352179,38.13701912,211.8,211.72,13.66282853]
[1738676352384,38.13701912,211.76,211.72,13.66282853]
[1738676352795,38.13701912,211.76,211.73,0.12549]
[1738676353315,38.13701912,211.76,211.72,13.66282853]
[1738676353516,38.13701912,211.78,211.72,13.66282853]
[1738676354498,38.13701912,211.78,211.73,4.7229]
[1738676354697,38.13701912,211.78,211.75,0.12549]
[1738676355101,38.13701912,211.76,211.73,0.063]
[1738676355307,38.13701912,211.76,211.73,0.18849]
[1738676355821,38.13701912,211.76,211.73,0.09474981]
[1738676356116,38.13701912,211.78,211.73,13.53733853]
[1738676356515,38.13701912,211.76,211.7,4.7234]
[1738676356701,38.13701912,211.76,211.71,13.53733853]
[1738676357708,38.13701912,211.76,211.72,0.12549]
[1738676359028,38.13701912,211.74,211.64,38.13701912]
[1738676359197,38.13701912,211.74,211.66,52.05082765]
[1738676360419,38.13701912,211.74,211.69,0.12549]
[1738676360835,134.8,211.77,211.72,0.12549]
[1738676361003,134.8,211.77,211.74,0.12549]
[1738676361206,38.13701912,211.76,211.68,38.13701912]
[1738676361623,38.13701912,211.76,211.69,13.66282853]
[1738676362402,38.13701912,211.76,211.71,0.12549]
[1738676362614,4.7217,211.79,211.65,23.5383802]
[1738676362615,23.5383802,211.73,211.65,23.5383802]
[1738676362900,23.5383802,211.71,211.63,23.5383802]
[1738676363207,23.5383802,211.65,211.6,4.7258]
[1738676363414,23.5383802,211.65,211.61,13.53733853]
[1738676363722,23.5383802,211.67,211.62,0.12549]
[1738676364216,23.5383802,211.71,211.64,0.12549]
[1738676364415,23.5383802,211.69,211.65,4.7247]
[1738676364615,23.5383802,211.67,211.59,23.5383802]
[1738676364816,23.5383802,211.67,211.6,4.7257]
[1738676365011,23.5383802,211.67,211.61,13.66282853]
[1738676365206,23.5383802,211.67,211.6,4.7257]
[1738676365414,23.5383802,211.69,211.61,23.5383802]
[1738676365729,23.5383802,211.69,211.62,13.66282853]
[1738676365925,23.5383802,211.63,211.55,23.5383802]
[1738676366226,23.5383802,211.63,211.56,4.7267]
[1738676366605,23.5383802,211.63,211.57,13.53733853]
[1738676366808,23.5383802,211.63,211.56,4.7267]
[1738676367014,23.5383802,211.63,211.54,4.7271]
[1738676367413,23.5383802,211.63,211.55,13.66282853]
[1738676367609,23.5383802,211.56,211.49,4.7283]
[1738676367935,23.5383802,211.56,211.48,1.15558787]
[1738676367936,23.5383802,211.58,211.5,23.5383802]
[1738676368234,23.5383802,211.54,211.49,20.0]
[1738676368524,23.5383802,211.52,211.46,4.7288]
[1738676368724,23.5383802,211.5,211.44,4.7292]
[1738676369099,23.5383802,211.5,211.42,28.2680802]
[1738676369328,23.5383802,211.43,211.34,4.7315]
[1738676369552,134.8,211.49,211.34,4.7315]
[1738676369553,23.5383802,211.39,211.34,4.7315]
[1738676369824,23.5383802,211.37,211.3,4.7325]
[1738676370021,23.5383802,211.37,211.28,28.2713802]
[1738676370216,23.5383802,211.39,211.34,0.12549]
[1738676370712,134.8,211.48,211.34,0.12549]
[1738676370713,173.15698542,211.48,211.39,13.78831853]
[1738676370915,38.35698542,211.48,211.42,13.66282853]
[1738676371117,38.35698542,211.48,211.42,0.12549]
[1738676371319,38.35698542,211.46,211.42,0.12549]
[1738676371522,38.35698542,211.48,211.4,38.35698542]
[1738676371842,0.25098,211.55,211.47,13.66282853]
[1738676371843,7.31405724,211.53,211.47,13.66282853]
[1738676372026,7.31405724,211.53,211.5,0.12549]
[1738676372235,173.15698542,211.52,211.41,6.619]
[1738676372405,38.35698542,211.5,211.41,6.619]
[1738676372731,38.35698542,211.52,211.44,58.35698542]
[1738676373030,38.35698542,211.52,211.44,38.35698542]
[1738676373240,38.35698542,211.48,211.4,38.35698542]
[1738676373602,38.35698542,211.48,211.41,0.25098]
[1738676373805,38.35698542,211.48,211.4,38.35698542]
[1738676374033,134.8,211.52,211.42,38.35698542]
[1738676374034,38.35698542,211.5,211.42,38.35698542]
[1738676374205,38.35698542,211.5,211.43,0.37647]
[1738676374415,38.35698542,211.54,211.47,0.25098]
[1738676374815,38.35698542,211.5,211.42,38.35698542]
[1738676375037,38.35698542,211.48,211.4,38.35698542]
[1738676375329,173.15698542,211.52,211.45,0.12549]
[1738676375832,173.15698542,211.52,211.45,0.25098]
[1738676376033,173.15698542,211.52,211.4,38.35698542]
[1738676376034,38.35698542,211.48,211.4,38.35698542]
[1738676376535,38.35698542,211.48,211.41,5.23206]
[1738676377236,38.35698542,211.48,211.41,4.98108]
[1738676378233,134.8,211.52,211.43,20.0]
[1738676378419,38.35698542,211.53,211.45,13.53733853]
[1738676378730,38.35698542,211.55,211.49,0.12549]
[1738676378931,134.8,211.59,211.46,0.37647]
[1738676378932,4.7264,211.58,211.46,38.35698542]
[1738676379137,38.35698542,211.53,211.45,0.063]
[1738676379349,38.38698542,211.53,211.45,13.97680853]
[1738676380025,38.38698542,211.53,211.46,4.729]
[1738676380246,38.35698542,211.51,211.46,4.729]
[1738676380415,38.35698542,211.51,211.47,0.25098]
[1738676380616,0.03,211.53,211.47,13.66282853]
[1738676380933,38.38698542,211.53,211.47,0.25098]
[1738676382036,38.35698542,211.51,211.47,0.12549]
[1738676382337,38.38698542,211.53,211.48,0.12549]
[1738676382524,0.03,211.53,211.48,52.27079395]
[1738676383161,0.03,211.53,211.5,38.35698542]
[1738676383325,0.03,211.53,211.51,0.12549]
[1738676384036,0.03,211.53,211.52,38.85894542]
[1738676384240,0.03,211.53,211.52,43.58654542]
[1738676384439,0.03,211.53,211.52,43.21007542]
[1738676385040,0.03,211.53,211.52,43.58654542]
[1738676385233,0.03,211.53,211.52,43.08458542]
[1738676385653,0.03,211.53,211.52,43.21007542]
[1738676386890,0.03,211.53,211.52,56.99839395]
[1738676387030,38.35698542,211.65,211.58,0.12549]
[1738676387349,134.8,211.67,211.57,38.35698542]
[1738676387350,38.35698542,211.67,211.6,0.50196]
[1738676387551,38.35698542,211.69,211.61,38.35698542]
[1738676387769,134.8,211.73,211.6,0.50196]
[1738676387770,38.35698542,211.67,211.6,0.12549]
[1738676388133,38.35698542,211.69,211.61,43.08258542]
[1738676388343,38.35698542,211.69,211.62,0.12549]
[1738676389568,38.35698542,211.69,211.63,4.7252]
[1738676391592,38.35698542,211.69,211.62,4.85089]
[1738676391885,38.35698542,211.67,211.62,4.7254]
[1738676392066,38.35698542,211.67,211.59,43.08288542]
[1738676392560,38.38698542,211.69,211.62,0.12549]
[1738676392759,0.03,211.69,211.66,23.67168106]
[1738676393196,0.03,211.69,211.68,24.04815106]
[1738676393570,0.03,211.69,211.68,28.77225106]
[1738676393777,0.03,211.69,211.62,23.54619106]
[1738676393989,23.54619106,211.68,211.6,30.06639106]
[1738676394186,0.03,211.69,211.64,0.50196]
[1738676394408,23.54619106,211.68,211.63,20.0]
[1738676394576,0.03,211.69,211.63,20.0]
[1738676394784,23.54619106,211.68,211.63,20.0]
[1738676395487,23.54619106,211.68,211.63,24.7251]
[1738676397075,0.03,211.69,211.63,24.7251]
[1738676397276,0.03,211.69,211.61,5.22736]
[1738676398309,0.03,211.69,211.63,0.50196]
[1738676398811,0.03,211.69,211.68,24.04815106]
[1738676399117,0.03,211.75,211.72,0.50196]
[1738676399410,0.03,211.75,211.74,23.67168106]
[1738676399578,0.03,211.75,211.7,23.54619106]
[1738676399775,23.57619106,211.75,211.68,6.0641]
[1738676399970,23.54619106,211.73,211.65,23.54619106]
[1738676400172,23.54619106,211.73,211.66,0.50196]
[1738676400713,23.54619106,211.73,211.65,23.54619106]
[1738676400911,23.54619106,211.71,211.65,4.7246]
[1738676401217,23.54619106,211.66,211.55,28.27299106]
[1738676401503,23.54619106,211.62,211.53,28.33639106]
[1738676401803,23.54619106,211.62,211.56,20.0]
[1738676402036,23.54619106,211.62,211.55,23.54619106]
[1738676402201,23.54619106,211.68,211.6,0.25098]
[1738676402407,23.54619106,211.72,211.63,23.54619106]
[1738676402597,23.54619106,211.72,211.65,23.54619106]
[1738676402809,28.26939106,211.72,211.63,23.54619106]
[1738676403215,28.26939106,211.72,211.58,12.52452395]
[1738676403216,23.54619106,211.66,211.57,23.54619106]
[1738676403411,23.54619106,211.62,211.56,4.7266]
[1738676403634,23.54619106,211.64,211.56,4.7266]
[1738676404005,23.54619106,211.62,211.56,4.7266]
[1738676404201,23.54619106,211.64,211.56,4.7266]
[1738676404402,23.54619106,211.62,211.55,23.54619106]
[1738676405013,23.54619106,211.62,211.55,28.27309106]
[1738676405236,23.54619106,211.62,211.53,28.33639106]
[1738676405444,23.54619106,211.58,211.53,0.063]
[1738676405763,23.54619106,211.56,211.53,0.063]
[1738676406033,23.54619106,211.54,211.53,0.063]
[1738676406411,60.50423065,211.54,211.53,0.063]
[1738676406610,36.95803959,211.54,211.53,0.063]
[1738676407038,41.68523959,211.54,211.53,0.063]
[1738676407602,23.54619106,211.54,211.53,0.063]
[1738676407806,23.54619106,211.58,211.53,0.063]
[1738676408045,23.54619106,211.6,211.53,0.063]
[1738676408283,23.54619106,211.56,211.53,0.063]
[1738676408547,152.93724853,211.62,211.53,0.063]
[1738676408548,23.54619106,211.58,211.53,0.063]
[1738676408838,23.54619106,211.62,211.55,23.54619106]
[1738676409039,23.54619106,211.62,211.56,4.7267]
[1738676409401,134.8,211.66,211.57,23.54619106]
[1738676409402,158.34619106,211.66,211.57,23.54619106]
[1738676409626,23.54619106,211.66,211.57,23.54619106]
[1738676409843,13.66765724,211.7,211.61,23.67168106]
[1738676409844,30.8602483,211.7,211.61,23.67168106]
[1738676410247,30.8602483,211.7,211.63,23.54619106]
[1738676410446,7.31405724,211.7,211.64,0.12549]
[1738676410843,23.54619106,211.68,211.61,23.54619106]
[1738676411156,23.54619106,211.7,211.63,0.12549]
[1738676411363,23.54619106,211.66,211.59,23.54619106]
[1738676411664,23.54619106,211.62,211.55,23.54619106]
[1738676412036,23.54619106,211.6,211.53,28.46188106]
[1738676412453,23.54619106,211.6,211.53,0.063]
[1738676412759,23.54619106,211.6,211.54,0.50196]
[1738676412954,23.54619106,211.62,211.54,0.50196]
[1738676413136,23.54619106,211.62,211.56,0.50196]
[1738676413672,23.54619106,211.64,211.56,0.50196]
[1738676414033,23.54619106,211.62,211.54,4.7271]
[1738676414365,23.54619106,211.62,211.55,24.04815106]
[1738676414860,23.54619106,211.62,211.55,24.11115106]
[1738676415360,23.54619106,211.62,211.57,0.12549]
[1738676416140,23.54619106,211.62,211.55,0.063]
[1738676416471,23.54619106,211.62,211.55,4.7899]
[1738676416963,23.54619106,211.62,211.55,0.063]
[1738676418288,23.54619106,211.62,211.55,0.18849]
[1738676418570,0.03,211.69,211.61,0.50196]
[1738676418733,0.03,211.69,211.64,23.54619106]
[1738676419069,23.54619106,211.67,211.61,0.12549]
[1738676419235,23.54619106,211.67,211.61,4.85089]
[1738676419435,0.03,211.69,211.65,0.12549]
[1738676419669,0.03,211.69,211.63,0.12549]
[1738676419866,0.03,211.69,211.62,23.54619106]
[1738676420166,0.03,211.69,211.63,0.50196]
[1738676420341,0.03,211.69,211.67,0.50196]
[1738676420662,0.03,211.69,211.64,14.12045573]
[1738676420663,0.03,211.69,211.64,23.54619106]
[1738676420875,0.03,211.69,211.64,20.0]
[1738676421048,0.03,211.69,211.65,0.50196]
[1738676421378,0.03,211.69,211.64,48.27089106]
[1738676421575,0.03,211.69,211.64,24.7247]
[1738676421740,0.03,211.69,211.65,0.12549]
[1738676422066,0.03,211.69,211.65,0.50196]
[1738676422446,0.03,211.69,211.64,48.27089106]
[1738676423262,0.03,211.69,211.65,5.22666]
[1738676423458,0.03,211.69,211.67,0.50196]
[1738676423660,0.03,211.69,211.66,23.54619106]
[1738676423661,0.03,211.69,211.68,37.45999959]
[1738676425385,0.0001,211.69,211.68,28.77225106]
[1738676425601,0.03,211.75,211.68,28.77225106]
[1738676425602,0.0001,211.75,211.72,20.50196]
[1738676425763,0.0001,211.75,211.74,37.45999959]
[1738676425964,0.0001,211.76,211.74,37.45999959]
[1738676426269,0.0001,211.76,211.75,40.16807424]
[1738676426669,0.03,211.91,211.86,0.50196]
[1738676426894,0.03,211.91,211.88,23.54619106]
[1738676427257,0.03,211.91,211.84,23.54619106]
[1738676427483,23.54619106,211.9,211.82,23.54619106]
[1738676427985,23.54619106,211.88,211.8,23.54619106]
[1738676428164,23.54619106,211.86,211.78,28.26799106]
[1738676428358,134.8,211.9,211.78,28.26799106]
[1738676428359,23.54619106,211.88,211.8,23.54619106]
[1738676429491,134.8,211.9,211.86,23.54619106]
[1738676429657,0.03,211.91,211.84,23.54619106]
[1738676430058,0.03,211.86,211.8,28.26749106]
[1738676430387,0.03,211.86,211.84,23.54619106]
[1738676431056,0.03,211.86,211.78,23.54619106]
[1738676431253,23.54619106,211.83,211.76,23.54619106]
[1738676431558,23.54619106,211.85,211.79,0.12549]
[1738676431760,0.03,211.86,211.79,0.12549]
[1738676431956,0.03,211.86,211.81,0.50196]
[1738676433084,0.03,211.86,211.8,23.54619106]
[1738676433259,23.54619106,211.85,211.76,28.26839106]
[1738676433460,23.54619106,211.85,211.78,23.54619106]
[1738676433660,23.54619106,211.85,211.77,0.50196]
[1738676434368,0.03,211.86,211.79,0.12549]
[1738676435093,0.03,211.86,211.8,23.54619106]
[1738676435292,0.03,211.86,211.81,4.84669]
[1738676436400,0.03,211.86,211.83,0.12549]
[1738676436586,0.03,211.86,211.84,23.54619106]
[1738676436793,0.03,211.86,211.85,0.50196]
[1738676437092,0.03,211.86,211.84,23.54619106]
[1738676437265,0.03,211.86,211.82,28.26699106]
[1738676437592,0.03,211.86,211.8,23.54619106]
[1738676437773,0.03,211.86,211.81,13.91380853]
[1738676437977,0.03,211.86,211.85,13.91380853]
[1738676438299,134.8,211.98,211.88,13.91380853]
[1738676438300,23.54619106,211.98,211.88,13.91380853]
[1738676438487,1.5786,212.03,211.9,37.45999959]
[1738676438791,23.54619106,212.03,211.95,0.50196]
[1738676439000,7.31405724,212.06,211.99,23.54619106]
[1738676439471,23.54619106,212.05,211.97,23.54619106]
[1738676439681,23.54619106,212.05,211.97,28.26369106]
[1738676439881,23.54619106,212.05,211.98,0.12549]
[1738676440067,23.54619106,212.03,211.95,23.54619106]
[1738676440896,23.54619106,212.03,211.96,0.12549]
[1738676441299,23.54619106,212.05,211.98,0.12549]
[1738676441781,23.54619106,212.05,212.0,0.25098]
[1738676441988,23.54619106,212.07,212.02,0.12549]
[1738676442179,0.03,212.05,212.01,23.54619106]
[1738676442611,0.03,212.05,212.04,0.50196]
[1738676442895,0.03,212.05,212.04,14.62104666]
[1738676443198,0.03,212.08,212.07,20.50196]
[1738676443398,0.03,212.08,212.07,73.01679496]
[1738676443601,0.03,212.1,212.09,13.91380853]
[1738676443802,0.03,212.1,212.09,37.45999959]
[1738676444501,0.03,212.1,212.09,23.67168106]
[1738676444704,0.03,212.1,212.09,0.12549]
[1738676444875,0.03,212.1,212.07,38.09921687]
[1738676445197,0.03,212.1,212.03,38.09921687]
[1738676445403,0.03,212.1,212.04,0.50196]
[1738676445581,0.03,212.1,212.04,0.12549]
[1738676445985,38.09921687,212.09,212.01,38.09921687]
[1738676446704,0.03,212.1,212.05,38.09921687]
[1738676446903,0.03,212.1,212.06,0.12549]
[1738676447274,0.03,212.1,212.03,38.09921687]
[1738676447687,38.09921687,212.05,211.93,11.0688]
[1738676447884,38.09921687,212.03,211.95,38.09921687]
[1738676448404,38.09921687,212.03,211.96,0.50196]
[1738676449178,4.7158,212.05,211.96,5.21976]
[1738676449374,38.09921687,212.04,211.96,43.31897687]
[1738676449877,38.09921687,212.0,211.92,38.09921687]
[1738676450077,134.8,212.03,211.96,38.09921687]
[1738676450315,134.8,212.03,211.99,0.12549]
[1738676450490,38.09921687,212.04,211.96,38.09921687]
[1738676450826,38.09921687,212.0,211.92,38.09921687]
[1738676450989,38.09921687,211.96,211.89,4.7194]
[1738676451180,38.09921687,211.98,211.9,38.09921687]
[1738676451379,38.09921687,211.98,211.91,0.50196]
[1738676451883,38.09921687,212.0,211.93,0.12549]
[1738676452304,38.09921687,212.02,211.94,38.09921687]
[1738676452989,38.09921687,212.02,211.95,0.12549]
[1738676453180,172.89921687,212.04,211.96,42.81701687]
[1738676453380,177.61531687,212.04,211.96,42.81701687]
[1738676453809,177.61531687,212.04,211.95,0.12549]
[1738676453810,38.09921687,212.02,211.95,0.12549]
[1738676453981,38.09921687,212.02,211.94,42.81731687]
[1738676454182,0.03,211.98,211.96,38.09921687]
[1738676454601,0.03,211.98,211.94,4.84359]
[1738676454602,0.03,211.98,211.95,0.50196]
[1738676454802,0.03,211.98,211.88,0.70754665]
[1738676454803,0.03,211.98,211.92,38.09921687]
[1738676455007,38.12921687,211.98,211.9,42.81841687]
[1738676456408,38.12921687,211.98,211.91,0.12549]
[1738676456608,0.03,211.98,211.97,38.60117687]
[1738676456791,0.03,211.98,211.97,52.0130254]
[1738676457216,0.03,211.98,211.97,56.7306254]
[1738676457726,0.03,211.98,211.97,42.94230687]